fUSD/lending_fUSD_20240609
["ID","MTS","AMOUNT","RATE_DAILY","PERIOD"]
[328910678,1717975856900,-500.0,0.00029041,4]
[328910679,1717975856910,-764.84,0.00029041,4]
[328910680,1717975856919,-500.0,0.00029041,4]
[328910681,1717975856931,-764.84,0.00029041,4]
[328910682,1717975856941,-500.0,0.00029041,4]
[328910683,1717975856950,-764.84,0.00029041,4]
[328910684,1717975856960,-500.0,0.00029041,4]
[328910685,1717975856969,-764.84,0.00029041,4]
[328910686,1717975856979,-764.84,0.00029041,4]
[328910687,1717975856989,-764.84,0.00029041,4]
[328910688,1717975856998,-764.84,0.00029041,4]
[328910689,1717975857008,-764.84,0.00029041,4]
[328910690,1717975857018,-764.84,0.00029041,4]
[328910691,1717975857027,-764.84,0.00029041,4]
[328910692,1717975857037,-764.84,0.00029041,4]
[328910693,1717975857048,-500.0,0.00029041,4]
[328910694,1717975857059,-764.84,0.00029041,4]
[328910695,1717975857069,-500.0,0.00029041,4]
[328910696,1717975857080,-279.22408245,0.00029041,4]
[328910697,1717975857091,-764.84,0.00029041,4]
[328910698,1717975857104,-764.84,0.00029041,4]
[328910699,1717975857114,-764.84,0.00029041,4]
[328910700,1717975857124,-764.84,0.00029041,4]
[328910701,1717975857135,-764.84,0.00029041,4]
[328910702,1717975857184,-500.0,0.00029041,4]
[328910703,1717975857194,-478.94989749,0.00029041,4]
[328910704,1717975857204,-505.48,0.00029041,4]
[328910705,1717975857214,-505.48,0.00029041,4]
[328910706,1717975857223,-98280.61334242,0.00029041,2]
[328910707,1717975857233,-505.48,0.00029041,4]
[328910708,1717975857243,-505.48,0.00029041,4]
[328910709,1717975857252,-505.48,0.00029041,4]
[328910710,1717975857263,-505.48,0.00029041,4]
[328910711,1717975857272,-505.48,0.00029041,4]
[328910712,1717975857282,-505.48,0.00029041,4]
[328910713,1717975857292,-505.48,0.00029041,4]
[328910714,1717975857302,-505.48,0.00029041,4]
[328910715,1717975857312,-505.48,0.00029041,4]
[328910716,1717975857321,-278.92148178,0.00029041,4]
[328910717,1717975857331,-505.48,0.00029041,4]
[328910718,1717975857341,-505.48,0.00029041,4]
[328910719,1717975857352,-505.48,0.00029041,4]
[328910720,1717975857362,-505.48,0.00029041,4]
[328910721,1717975857373,-505.48,0.00029041,4]
[328910722,1717975857383,-505.48,0.00029041,4]
[328910723,1717975857393,-505.48,0.00029041,4]
[328910724,1717975857405,-500.0,0.00029041,4]
[328910725,1717975857415,-472.17115792,0.00029041,4]
[328910726,1717975857425,-155.37234522,0.00029041,2]
[328910727,1717975857435,-500.0,0.00029041,4]
[328910728,1717975857445,-500.0,0.00029041,4]
[328910729,1717975857455,-500.0,0.00029041,4]
[328910730,1717975857465,-500.0,0.00029041,4]
[328910731,1717975857474,-500.0,0.00029041,4]
[328910732,1717975857484,-500.0,0.00029041,4]
[328910733,1717975857493,-500.0,0.00029041,4]
[328910734,1717975857503,-500.0,0.00029041,4]
[328910735,1717975857513,-500.0,0.00029041,4]
[328910736,1717975857523,-500.0,0.00029041,4]
[328910737,1717975857533,-230.24219867,0.00029041,4]
[328910738,1717975857544,-500.0,0.00029041,4]
[328910739,1717975857553,-500.0,0.00029041,4]
[328910740,1717975857563,-507.99214092,0.00029041,4]
[328910741,1717975857574,-229.0690363,0.00029041,4]
[328910742,1717975857584,-500.0,0.00029041,4]
[328910743,1717975857595,-500.0,0.00029041,4]
[328910744,1717975857604,-534.59265992,0.00029041,4]
[328910745,1717975857615,-500.0,0.00029041,2]
[328910746,1717975857625,-329.63254126,0.00029041,2]
[328910747,1717975857635,-418.72360479,0.00029041,4]
[328910748,1717975857646,-20000.0,0.00029041,2]
[328910749,1717975857655,-20000.0,0.00029041,2]
[328910750,1717975857666,-210.27527829,0.00029041,2]
[328910751,1717975857676,-297.90268862,0.00029041,2]
[328910752,1717975857686,-500.0,0.00029041,4]
[328910753,1717975857696,-500.0,0.00029041,4]
[328910754,1717975857706,-500.0,0.00029041,4]
[328910755,1717975857716,-500.0,0.00029041,4]
[328910756,1717975857727,-500.0,0.00029041,2]
[328910757,1717975857737,-500.0,0.00029041,4]
[328910758,1717975857749,-500.0,0.00029041,2]
[328910759,1717975857761,-150.7281396,0.00029041,2]
[328910760,1717975857771,-412.25688897,0.00029041,4]
[328910761,1717975857780,-500.0,0.00029041,2]
[328910762,1717975857790,-502.22091451,0.00029041,2]
[328910763,1717975857800,-500.0,0.00029043,3]
[328910764,1717975857810,-150.0,0.00029043,2]
[328910765,1717975857820,-150.0,0.00029043,2]
[328910766,1717975857830,-150.0,0.00029044,2]
[328910767,1717975857840,-150.0,0.00029045,2]
[328910768,1717975857851,-157.061007,0.00029048,20]
[328910769,1717975857861,-157.061007,0.00029048,24]
[328910770,1717975857872,-157.061007,0.00029048,22]
[328910771,1717975857882,-150.0,0.00029048,2]
[328910772,1717975857892,-500.0,0.00029052,3]
[328910773,1717975857903,-150.0,0.00029052,2]
[328910774,1717975857913,-300.0,0.00029054,2]
[328910775,1717975857923,-150.0,0.00029055,2]
[328910776,1717975857934,-150.0,0.00029057,2]
[328910777,1717975857944,-150.0,0.00029057,2]
[328910778,1717975857954,-300.0,0.00029059,2]
[328910779,1717975857964,-300.0,0.0002906,2]
[328910780,1717975857974,-500.0,0.0002906,3]
[328910781,1717975857984,-163.52711942,0.00029061,2]
[328910782,1717975857994,-150.0,0.00029064,2]
[328910783,1717975858004,-500.0,0.00029065,2]
[328910784,1717975858014,-150.0,0.00029066,7]
[328910785,1717975858024,-300.0,0.00029067,2]
[328910786,1717975858034,-150.0,0.00029067,2]
[328910787,1717975858043,-150.0,0.00029068,7]
[328910788,1717975858053,-300.0,0.00029069,2]
[328910789,1717975858062,-500.0,0.00029069,3]
[328910790,1717975858072,-157.683312,0.0002907,7]
[328910791,1717975858082,-500.0,0.00029078,3]
[328910792,1717975858093,-150.0,0.00029079,7]
[328910793,1717975858108,-150.0,0.00029079,7]
[328910794,1717975858118,-150.0,0.00029079,7]
[328910795,1717975858128,-500.0,0.00029081,4]
[328910796,1717975858137,-500.0,0.00029081,2]
[328910797,1717975858147,-500.0,0.00029081,4]
[328910798,1717975858158,-500.0,0.00029081,2]
[328910799,1717975858167,-618.86,0.00029081,2]
[328910800,1717975858178,-500.0,0.00029081,2]
[328910801,1717975858188,-151.0,0.00029084,7]
[328910802,1717975858198,-151.0,0.00029084,7]
[328910803,1717975858207,-151.0,0.00029084,7]
[328910804,1717975858217,-151.0,0.00029084,7]
[328910805,1717975858227,-151.0,0.00029084,7]
[328910806,1717975858236,-151.0,0.00029084,7]
[328910807,1717975858246,-151.0,0.00029084,7]
[328910808,1717975858256,-151.0,0.00029084,7]
[328910809,1717975858267,-151.0,0.00029084,7]
[328910810,1717975858278,-151.0,0.00029084,7]
[328910811,1717975858288,-500.0,0.00029087,3]
[328910812,1717975858298,-151.0,0.00029087,7]
[328910813,1717975858308,-151.0,0.00029087,7]
[328910814,1717975858318,-151.0,0.00029087,7]
[328910815,1717975858330,-151.0,0.00029087,7]
[328910816,1717975858340,-155.403827,0.00029087,7]
[328910817,1717975858351,-151.0,0.00029087,7]
[328910818,1717975858361,-150.0,0.00029089,2]
[328910819,1717975858370,-500.0,0.00029096,3]
[328910820,1717975858379,-150.0,0.00029097,2]
[328910821,1717975858389,-500.0,0.000291,7]
[328910822,1717975858398,-500.0,0.000291,7]
[328910823,1717975858408,-500.0,0.000291,7]
[328910824,1717975858418,-500.0,0.000291,7]
[328910825,1717975858428,-500.0,0.000291,7]
[328910826,1717975858439,-500.0,0.000291,7]
[328910827,1717975858448,-500.0,0.000291,7]
[328910828,1717975858457,-500.0,0.000291,7]
[328910829,1717975858467,-500.0,0.000291,7]
[328910830,1717975858477,-500.0,0.000291,7]
[328910831,1717975858486,-500.0,0.000291,7]
[328910832,1717975858496,-500.0,0.000291,7]
[328910833,1717975858506,-500.0,0.000291,7]
[328910834,1717975858515,-500.0,0.000291,7]
[328910835,1717975858525,-500.0,0.000291,7]
[328910836,1717975858535,-500.0,0.000291,7]
[328910837,1717975858544,-500.0,0.000291,7]
[328910838,1717975858554,-500.0,0.000291,7]
[328910839,1717975858564,-500.0,0.000291,7]
[328910840,1717975858574,-500.0,0.000291,7]
[328910841,1717975858584,-500.0,0.000291,7]
[328910842,1717975858594,-500.0,0.000291,7]
[328910843,1717975858603,-500.0,0.000291,7]
[328910844,1717975858613,-500.0,0.000291,7]
[328910845,1717975858623,-500.0,0.000291,7]
[328910846,1717975858633,-500.0,0.000291,7]
[328910847,1717975858643,-500.0,0.000291,7]
[328910848,1717975858653,-500.0,0.000291,7]
[328910849,1717975858663,-500.0,0.000291,7]
[328910850,1717975858673,-500.0,0.000291,7]
[328910851,1717975858684,-500.0,0.000291,7]
[328910852,1717975858694,-500.0,0.000291,7]
[328910853,1717975858705,-500.0,0.000291,7]
[328910854,1717975858715,-500.0,0.000291,7]
[328910855,1717975858726,-532.0,0.000291,7]
[328910856,1717975858736,-500.0,0.000291,7]
[328910857,1717975858747,-500.0,0.000291,7]
[328910858,1717975858757,-172.0,0.000291,7]
[328910859,1717975858767,-150.0,0.000291,2]
[328910860,1717975858778,-151.0,0.000291,7]
[328910861,1717975858788,-152.042745,0.000291,7]
[328910862,1717975858799,-214.850723,0.000291,7]
[328910863,1717975858809,-151.0,0.000291,7]
[328910864,1717975858820,-152.473571,0.000291,7]
[328910865,1717975858830,-151.0,0.000291,7]
[328910866,1717975858840,-497.519702,0.000291,7]
[328910867,1717975858850,-497.519702,0.000291,7]
[328910868,1717975858860,-151.0,0.000291,7]
[328910869,1717975858870,-151.0,0.000291,7]
[328910870,1717975858880,-151.0,0.000291,7]
[328910871,1717975858889,-151.0,0.000291,7]
[328910872,1717975858900,-301.120175,0.000291,7]
[328910873,1717975858910,-151.0,0.000291,7]
[328910874,1717975858920,-380.143332,0.000291,7]
[328910875,1717975858930,-181.36342,0.000291,7]
[328910876,1717975858940,-380.143332,0.000291,7]
[328910877,1717975858951,-150.0,0.00029102,2]
[328910878,1717975858961,-500.0,0.00029104,3]
[328910879,1717975858970,-150.0,0.00029105,2]
[328910880,1717975858982,-150.0,0.0002911,2]
[328910881,1717975858992,-151.0,0.00029112,7]
[328910882,1717975859002,-151.0,0.00029112,7]
[328910883,1717975859012,-151.0,0.00029112,7]
[328910884,1717975859031,-158.692134,0.00029112,7]
[328910885,1717975859043,-500.0,0.00029113,3]
[328910886,1717975859054,-150.0,0.00029116,2]
[328910887,1717975859065,-150.0,0.00029117,2]
[328910888,1717975859075,-150.0,0.00029118,2]
[328910889,1717975859087,-150.0,0.00029119,2]
[328910890,1717975859099,-500.0,0.00029122,3]
[328910891,1717975859113,-150.0,0.00029123,7]
[328910892,1717975859124,-150.0,0.00029129,2]
[328910893,1717975859135,-300.0,0.00029129,2]
[328910894,1717975859161,-500.0,0.00029131,3]
[328910895,1717975859205,-150.0,0.00029133,7]
[328910896,1717975859216,-150.0,0.00029136,2]
[328910897,1717975859226,-150.0,0.00029138,2]
[328910898,1717975859236,-150.0,0.00029139,2]
[328910899,1717975859247,-500.0,0.0002914,3]
[328910900,1717975859257,-150.0,0.00029141,7]
[328910901,1717975859267,-157.061005,0.00029148,24]
[328910902,1717975859277,-173.061007,0.00029148,20]
[328910903,1717975859287,-173.061007,0.00029148,22]
[328910904,1717975859297,-500.0,0.00029148,3]
[328910905,1717975859308,-150.0,0.00029152,2]
[328910906,1717975859318,-150.0,0.00029154,2]
[328910907,1717975859327,-150.0,0.00029155,2]
[328910908,1717975859337,-150.0,0.00029156,2]
[328910909,1717975859347,-150.0,0.00029157,2]
[328910910,1717975859357,-500.0,0.00029157,3]
[328910911,1717975859367,-300.0,0.00029165,2]
[328910912,1717975859377,-500.0,0.00029166,3]
[328910913,1717975859386,-151.0,0.00029166,7]
[328910914,1717975859397,-151.0,0.00029166,7]
[328910915,1717975859407,-151.998453,0.00029166,7]
[328910916,1717975859416,-151.0,0.00029166,7]
[328910917,1717975859426,-151.0,0.00029166,7]
[328910918,1717975859436,-151.0,0.00029166,7]
[328910919,1717975859446,-151.0,0.00029166,7]
[328910920,1717975859457,-151.0,0.00029166,7]
[328910921,1717975859468,-150.0,0.0002917,2]
[328910922,1717975859479,-150.0,0.00029172,2]
[328910923,1717975859489,-151.0,0.00029173,7]
[328910924,1717975859500,-15084.60998741,0.00029174,2]
[328910925,1717975859513,-500.0,0.00029175,3]
[328910926,1717975859524,-300.0,0.00029176,2]
[328910927,1717975859536,-155.77189881,0.00029176,2]
[328910928,1717975859548,-150.0,0.00029178,7]
[328910929,1717975859559,-1500.0,0.00029182,2]
[328910930,1717975859569,-500.0,0.00029184,3]
[328910931,1717975859581,-300.0,0.00029189,2]
[328910932,1717975859592,-150.0,0.00029189,2]
[328910933,1717975859603,-300.0,0.0002919,2]
[328910934,1717975859613,-160.0,0.00029191,2]
[328910935,1717975859624,-152.786885,0.00029192,7]
[328910936,1717975859635,-151.0,0.00029192,7]
[328910937,1717975859647,-151.0,0.00029192,7]
[328910938,1717975859658,-300.0,0.00029192,2]
[328910939,1717975859668,-500.0,0.00029192,3]
[328910940,1717975859679,-2000.0,0.00029196,2]
[328910941,1717975859690,-200.0,0.00029196,2]
[328910942,1717975859700,-150.0,0.000292,7]
[328910943,1717975859715,-160.0,0.000292,2]
[328910944,1717975859725,-5800.0,0.000292,2]
[328910945,1717975859736,-167.00314077,0.000292,2]
[328910946,1717975859746,-186.82047153,0.000292,2]
[328910947,1717975859757,-306.68374458,0.000292,15]
[328910948,1717975859768,-1017.36405982,0.000292,2]
[328910949,1717975859779,-500.0,0.00029201,3]
[328910950,1717975859790,-150.0,0.00029202,2]
[328910951,1717975859800,-150.0,0.00029202,7]
[328910952,1717975859810,-305.92324424,0.00029206,2]
[328910953,1717975859821,-500.0,0.0002921,3]
[328910954,1717975859832,-1500.0,0.0002921,2]
[328910955,1717975859842,-1500.0,0.00029212,2]
[328910956,1717975859853,-2104.21,0.00029216,2]
[328910957,1717975859864,-500.0,0.00029219,3]
[328910958,1717975859877,-1500.0,0.00029222,2]
[328910959,1717975859887,-150.0,0.00029227,2]
[328910960,1717975859898,-500.0,0.00029228,3]
[328910961,1717975859908,-150.0,0.00029233,7]
[328910962,1717975859919,-150.0,0.00029233,7]
[328910963,1717975859931,-150.0,0.00029233,7]
[328910964,1717975859941,-1000.0,0.00029236,2]
[328910965,1717975859953,-150.0,0.00029236,2]
[328910966,1717975859968,-500.0,0.00029236,3]
[328910967,1717975859978,-151.48930029,0.00029241,2]
[328910968,1717975859989,-150.0,0.00029243,2]
[328910969,1717975860001,-150.0,0.00029245,2]
[328910970,1717975860012,-500.0,0.00029245,3]
[328910971,1717975860022,-173.061007,0.00029248,24]
[328910972,1717975860033,-173.061007,0.00029248,22]
[328910973,1717975860043,-173.061007,0.00029248,20]
[328910974,1717975860055,-150.0,0.0002925,2]
[328910975,1717975860065,-500.0,0.00029254,3]
[328910976,1717975860077,-150.0,0.00029254,2]
[328910977,1717975860087,-150.0,0.00029254,2]
[328910978,1717975860097,-150.0,0.00029255,2]
[328910979,1717975860111,-160.65767632,0.00029256,2]
[328910980,1717975860121,-197.0,0.0002926,15]
[328910981,1717975860132,-150.5,0.0002926,15]
[328910982,1717975860142,-150.5,0.0002926,15]
[328910983,1717975860153,-150.5,0.0002926,15]
[328910984,1717975860163,-150.5,0.0002926,15]
[328910985,1717975860173,-150.5,0.0002926,15]
[328910986,1717975860185,-1679.0,0.0002926,15]
[328910987,1717975860198,-1679.0,0.0002926,15]
[328910988,1717975860208,-300.0,0.0002926,2]
[328910989,1717975860218,-500.0,0.00029263,3]
[328910990,1717975860229,-150.0,0.00029263,2]
[328910991,1717975860239,-150.0,0.00029264,7]
[328910992,1717975860249,-150.0,0.00029266,7]
[328910993,1717975860260,-835.22,0.00029269,4]
[328910994,1717975860270,-1591.86,0.00029269,4]
[328910995,1717975860281,-527.19456163,0.00029269,4]
[328910996,1717975860291,-500.0,0.00029269,4]
[328910997,1717975860301,-500.0,0.00029269,4]
[328910998,1717975860312,-150.0,0.00029269,2]
[328910999,1717975860323,-659.53,0.00029269,4]
[328911000,1717975860333,-474.0,0.0002927,15]
[328911001,1717975860344,-150.5,0.0002927,15]
[328911002,1717975860354,-150.5,0.0002927,15]
[328911003,1717975860365,-150.5,0.0002927,15]
[328911004,1717975860375,-150.5,0.0002927,15]
[328911005,1717975860385,-150.5,0.0002927,15]
[328911006,1717975860396,-202.0,0.0002927,15]
[328911007,1717975860407,-200.91,0.0002927,15]
[328911008,1717975860418,-1679.0,0.0002927,15]
[328911009,1717975860431,-1679.0,0.0002927,15]
[328911010,1717975860441,-1679.0,0.0002927,15]
[328911011,1717975860452,-455.33996355,0.0002927,2]
[328911012,1717975860462,-150.0,0.0002927,2]
[328911013,1717975860473,-150.0,0.0002927,2]
[328911014,1717975860483,-500.0,0.00029272,3]
[328911015,1717975860493,-1500.0,0.00029277,2]
[328911016,1717975860504,-500.0,0.00029278,4]
[328911017,1717975860515,-504.42,0.00029278,4]
[328911018,1717975860525,-874.95,0.00029278,4]
[328911019,1717975860536,-150.0,0.00029278,2]
[328911020,1717975860547,-150.5,0.00029279,15]
[328911021,1717975860557,-603.04692792,0.00029279,4]
[328911022,1717975860567,-500.0,0.00029279,2]
[328911023,1717975860578,-500.0,0.00029279,2]
[328911024,1717975860589,-502.91433694,0.00029279,2]
[328911025,1717975860599,-211.80621219,0.00029279,4]
[328911026,1717975860610,-835.22,0.00029279,4]
[328911027,1717975860621,-835.22,0.00029279,4]
[328911028,1717975860632,-835.22,0.00029279,4]
[328911029,1717975860643,-835.22,0.00029279,4]
[328911030,1717975860654,-1591.86,0.00029279,4]
[328911031,1717975860665,-1591.86,0.00029279,4]
[328911032,1717975860675,-1591.86,0.00029279,4]
[328911033,1717975860686,-1591.86,0.00029279,4]
[328911034,1717975860697,-500.0,0.00029279,4]
[328911035,1717975860707,-500.0,0.00029279,4]
[328911036,1717975860717,-500.0,0.00029279,4]
[328911037,1717975860727,-500.0,0.00029279,4]
[328911038,1717975860737,-500.0,0.00029279,4]
[328911039,1717975860748,-500.0,0.00029279,4]
[328911040,1717975860758,-500.0,0.00029279,4]
[328911041,1717975860768,-500.0,0.00029279,4]
[328911042,1717975860778,-500.0,0.00029279,2]
[328911043,1717975860789,-500.0,0.00029279,2]
[328911044,1717975860799,-500.0,0.00029279,2]
[328911045,1717975860809,-500.0,0.00029279,2]
[328911046,1717975860819,-500.0,0.00029279,2]
[328911047,1717975860829,-506.39210055,0.00029279,2]
[328911048,1717975860839,-618.86,0.00029279,2]
[328911049,1717975860850,-618.86,0.00029279,2]
[328911050,1717975860860,-618.86,0.00029279,2]
[328911051,1717975860872,-618.86,0.00029279,2]
[328911052,1717975860882,-618.86,0.00029279,2]
[328911053,1717975860893,-618.86,0.00029279,2]
[328911054,1717975860904,-500.0,0.00029279,4]
[328911055,1717975860914,-500.0,0.00029279,4]
[328911056,1717975860924,-500.0,0.00029279,4]
[328911057,1717975860938,-500.0,0.00029279,4]
[328911058,1717975860949,-500.0,0.00029279,4]
[328911059,1717975860961,-280.03046159,0.00029279,4]
[328911060,1717975860972,-504.42,0.00029279,4]
[328911061,1717975861186,-504.42,0.00029279,4]
[328911062,1717975861200,-504.42,0.00029279,4]
[328911063,1717975861211,-504.42,0.00029279,4]
[328911064,1717975861221,-504.42,0.00029279,4]
[328911065,1717975861232,-504.4391,0.00029279,4]
[328911066,1717975861245,-500.0,0.00029279,2]
[328911067,1717975861256,-500.0,0.00029279,2]
[328911068,1717975861265,-500.0,0.00029279,2]
[328911069,1717975861274,-500.0,0.00029279,2]
[328911070,1717975861284,-500.0,0.00029279,2]
[328911071,1717975861294,-500.0,0.00029279,2]
[328911072,1717975861306,-790.62,0.00029279,4]
[328911073,1717975861315,-790.62,0.00029279,4]
[328911074,1717975861326,-790.62,0.00029279,4]
[328911075,1717975861338,-790.62,0.00029279,4]
[328911076,1717975861349,-790.62,0.00029279,4]
[328911077,1717975861359,-790.6651,0.00029279,4]
[328911078,1717975861368,-874.95,0.00029279,4]
[328911079,1717975861379,-874.95,0.00029279,4]
[328911080,1717975861391,-874.95,0.00029279,4]
[328911081,1717975861401,-874.95,0.00029279,4]
[328911082,1717975861412,-874.95,0.00029279,4]
[328911083,1717975861422,-875.15,0.00029279,4]
[328911084,1717975861433,-659.53,0.00029279,4]
[328911085,1717975861443,-659.53,0.00029279,4]
[328911086,1717975861452,-659.53,0.00029279,4]
[328911087,1717975861462,-659.53,0.00029279,4]
[328911088,1717975861472,-764.84,0.00029279,4]
[328911089,1717975861484,-764.84,0.00029279,4]
[328911090,1717975861496,-764.84,0.00029279,4]
[328911091,1717975861507,-764.84,0.00029279,4]
[328911092,1717975861518,-764.84,0.00029279,4]
[328911093,1717975861530,-765.03831992,0.00029279,4]
[328911094,1717975861541,-505.48,0.00029279,4]
[328911095,1717975861553,-505.48,0.00029279,4]
[328911096,1717975861564,-505.48,0.00029279,4]
[328911097,1717975861576,-505.48,0.00029279,4]
[328911098,1717975861586,-505.48,0.00029279,4]
[328911099,1717975861596,-505.5111,0.00029279,4]
[328911100,1717975861607,-474.0,0.0002928,15]
[328911101,1717975861617,-151.54,0.0002928,15]
[328911102,1717975861627,-150.5,0.0002928,15]
[328911103,1717975861637,-150.5,0.0002928,15]
[328911104,1717975861647,-150.5,0.0002928,15]
[328911105,1717975861657,-150.5,0.0002928,15]
[328911106,1717975861666,-150.5,0.0002928,15]
[328911107,1717975861678,-150.5,0.0002928,15]
[328911108,1717975861687,-150.5,0.0002928,15]
[328911109,1717975861698,-1679.0,0.0002928,15]
[328911110,1717975861707,-1679.0,0.0002928,15]
[328911111,1717975861717,-1679.0,0.0002928,15]
[328911112,1717975861727,-151.0,0.0002928,7]
[328911113,1717975861736,-168.702196,0.0002928,7]
[328911114,1717975861746,-152.762038,0.0002928,7]
[328911115,1717975861756,-151.0,0.0002928,7]
[328911116,1717975861766,-187.958342,0.0002928,7]
[328911117,1717975861775,-151.0,0.0002928,7]
[328911118,1717975861785,-151.0,0.0002928,7]
[328911119,1717975861795,-43114.7557066,0.0002928,2]
[328911120,1717975861805,-39156.1629535,0.0002928,2]
[328911121,1717975861816,-35197.5702003,0.0002928,2]
[328911122,1717975861826,-31238.9774472,0.0002928,2]
[328911123,1717975861836,-27280.3846941,0.0002928,2]
[328911124,1717975861847,-12644.8395253,0.0002928,2]
[328911125,1717975861859,-11495.1498186,0.0002928,2]
[328911126,1717975861869,-10345.4601118,0.0002928,2]
[328911127,1717975861880,-9195.7704051,0.0002928,2]
[328911128,1717975861890,-8046.0806984,0.0002928,2]
[328911129,1717975861900,-300.0,0.0002928,2]
[328911130,1717975861910,-6081.6312353,0.0002928,2]
[328911131,1717975861920,-5528.6792727,0.0002928,2]
[328911132,1717975861931,-4975.7273102,0.0002928,2]
[328911133,1717975861942,-4422.7753477,0.0002928,2]
[328911134,1717975861952,-3869.8233851,0.0002928,2]
[328911135,1717975861963,-12542.172469,0.0002928,2]
[328911136,1717975861973,-10309.9747305,0.0002928,2]
[328911137,1717975861983,-8077.7769921,0.0002928,2]
[328911138,1717975861993,-5845.5792536,0.0002928,2]
[328911139,1717975862003,-500.0,0.0002928,3]
[328911140,1717975862013,-150.0,0.00029285,2]
[328911141,1717975862027,-618.86,0.00029287,2]
[328911142,1717975862037,-500.0,0.00029287,2]
[328911143,1717975862047,-150.0,0.00029288,7]
[328911144,1717975862057,-150.5,0.00029289,15]
[328911145,1717975862068,-1000.0,0.00029289,2]
[328911146,1717975862078,-600.12005939,0.00029289,2]
[328911147,1717975862091,-835.22,0.00029289,4]
[328911148,1717975862103,-835.22,0.00029289,4]
[328911149,1717975862114,-1591.86,0.00029289,4]
[328911150,1717975862126,-1591.86,0.00029289,4]
[328911151,1717975862137,-500.0,0.00029289,4]
[328911152,1717975862148,-500.0,0.00029289,4]
[328911153,1717975862158,-500.0,0.00029289,4]
[328911154,1717975862169,-500.0,0.00029289,4]
[328911155,1717975862182,-618.86,0.00029289,2]
[328911156,1717975862192,-165.87534584,0.00029289,2]
[328911157,1717975862202,-659.53,0.00029289,4]
[328911158,1717975862212,-659.53,0.00029289,4]
[328911159,1717975862222,-380.143332,0.00029289,7]
[328911160,1717975862232,-181.36342,0.00029289,7]
[328911161,1717975862242,-380.143332,0.00029289,7]
[328911162,1717975862252,-500.0,0.00029289,3]
[328911163,1717975862262,-16000.0,0.00029289,3]
[328911164,1717975862271,-474.0,0.0002929,15]
[328911165,1717975862281,-150.5,0.0002929,15]
[328911166,1717975862291,-271.672874,0.0002929,7]
[328911167,1717975862301,-151.0,0.0002929,7]
[328911168,1717975862311,-497.519702,0.0002929,7]
[328911169,1717975862321,-497.519702,0.0002929,7]
[328911170,1717975862331,-152.103664,0.0002929,7]
[328911171,1717975862341,-151.0,0.0002929,7]
[328911172,1717975862351,-151.0,0.0002929,7]
[328911173,1717975862360,-3604.9656006,0.0002929,2]
[328911174,1717975862372,-3277.1961706,0.0002929,2]
[328911175,1717975862381,-2949.4267405,0.0002929,2]
[328911176,1717975862391,-2621.6573105,0.0002929,2]
[328911177,1717975862402,-2293.8878804,0.0002929,2]